{"text_format":"1","workbook":"xlsx","n_sheets":3,"sheets":["倉庫の在庫リスト","在庫ピッキング リスト","ビンのルックアップ"],"not_rendered":{"charts":0,"images":0,"macros":1,"external_links":0,"defined_names":8,"comments":0,"pivot_tables":0},"unopened":[],"bounds":{"document_bytes":16777216,"sheet_cells":100000,"rows_first":2000,"rows_last":500,"rows_between":2000,"halvings":0,"cell_chars":16384,"cell_head_chars":4096},"cells_cut":0,"cells_raw":0,"read":"whole","date_system":"1900"}

{"sheet":"倉庫の在庫リスト","index":0,"n_rows":15,"n_cols":11,"rows_kept":15,"cut":false,"hidden":false,"merged":[]}
[null,"倉庫の在庫リスト"]
[null,"在庫の合計評価額:","在庫品目:","ビン数:","在庫ピッキング リスト","ビンのルックアップ"]
[null,{"$f":"SUM(在庫リスト[在庫の評価額])","v":4649},{"$f":"COUNTA(在庫リスト[説明])","v":11},{"$f":"SUMPRODUCT((1/COUNTIF(在庫リスト[ビン番号],在庫リスト[ビン番号]&\"\")))","v":6}]
[null,"SKU","説明","ビン番号","場所","単位","数量","再発注の数量","コスト","在庫の評価額","再発注"]
[null,"SP7875","品目 1","T345",{"$f":"IFERROR(VLOOKUP(在庫リスト[[#This Row],[ビン番号]],ビンのルックアップ[],3,FALSE),\"\")","v":"2 列目、スロット 1"},1,20,10,30,{"$f":"在庫リスト[[#This Row],[数量]]*在庫リスト[[#This Row],[コスト]]","v":600},{"$f":"IFERROR(IF(在庫リスト[[#This Row],[数量]]<=在庫リスト[[#This Row],[再発注の数量]],1,0),0)","v":0}]
[null,"TR87680","品目 2","T345",{"$f":"IFERROR(VLOOKUP(在庫リスト[[#This Row],[ビン番号]],ビンのルックアップ[],3,FALSE),\"\")","v":"2 列目、スロット 1"},1,30,15,40,{"$f":"在庫リスト[[#This Row],[数量]]*在庫リスト[[#This Row],[コスト]]","v":1200},{"$f":"IFERROR(IF(在庫リスト[[#This Row],[数量]]<=在庫リスト[[#This Row],[再発注の数量]],1,0),0)","v":0}]
[null,"MK676554","品目 3","T5789",{"$f":"IFERROR(VLOOKUP(在庫リスト[[#This Row],[ビン番号]],ビンのルックアップ[],3,FALSE),\"\")","v":"1 列目、スロット 1"},1,10,5,5,{"$f":"在庫リスト[[#This Row],[数量]]*在庫リスト[[#This Row],[コスト]]","v":50},{"$f":"IFERROR(IF(在庫リスト[[#This Row],[数量]]<=在庫リスト[[#This Row],[再発注の数量]],1,0),0)","v":0}]
[null,"YE98767","品目 4","T9876",{"$f":"IFERROR(VLOOKUP(在庫リスト[[#This Row],[ビン番号]],ビンのルックアップ[],3,FALSE),\"\")","v":"3 列目、スロット 2"},"ボックス (10 個)",40,10,15,{"$f":"在庫リスト[[#This Row],[数量]]*在庫リスト[[#This Row],[コスト]]","v":600},{"$f":"IFERROR(IF(在庫リスト[[#This Row],[数量]]<=在庫リスト[[#This Row],[再発注の数量]],1,0),0)","v":0}]
[null,"XR23423","品目 5","T098",{"$f":"IFERROR(VLOOKUP(在庫リスト[[#This Row],[ビン番号]],ビンのルックアップ[],3,FALSE),\"\")","v":"3 列目、スロット 1"},1,12,10,26,{"$f":"在庫リスト[[#This Row],[数量]]*在庫リスト[[#This Row],[コスト]]","v":312},{"$f":"IFERROR(IF(在庫リスト[[#This Row],[数量]]<=在庫リスト[[#This Row],[再発注の数量]],1,0),0)","v":0}]
[null,"PW98762","品目 6","T345",{"$f":"IFERROR(VLOOKUP(在庫リスト[[#This Row],[ビン番号]],ビンのルックアップ[],3,FALSE),\"\")","v":"2 列目、スロット 1"},1,7,10,50,{"$f":"在庫リスト[[#This Row],[数量]]*在庫リスト[[#This Row],[コスト]]","v":350},{"$f":"IFERROR(IF(在庫リスト[[#This Row],[数量]]<=在庫リスト[[#This Row],[再発注の数量]],1,0),0)","v":1}]
[null,"BM87684","品目 7","T349",{"$f":"IFERROR(VLOOKUP(在庫リスト[[#This Row],[ビン番号]],ビンのルックアップ[],3,FALSE),\"\")","v":"1 列目、スロット 2"},1,10,5,10,{"$f":"在庫リスト[[#This Row],[数量]]*在庫リスト[[#This Row],[コスト]]","v":100},{"$f":"IFERROR(IF(在庫リスト[[#This Row],[数量]]<=在庫リスト[[#This Row],[再発注の数量]],1,0),0)","v":0}]
[null,"BH67655","品目 8","T5789",{"$f":"IFERROR(VLOOKUP(在庫リスト[[#This Row],[ビン番号]],ビンのルックアップ[],3,FALSE),\"\")","v":"1 列目、スロット 1"},1,19,10,3,{"$f":"在庫リスト[[#This Row],[数量]]*在庫リスト[[#This Row],[コスト]]","v":57},{"$f":"IFERROR(IF(在庫リスト[[#This Row],[数量]]<=在庫リスト[[#This Row],[再発注の数量]],1,0),0)","v":0}]
[null,"WT98768","品目 9","T9875",{"$f":"IFERROR(VLOOKUP(在庫リスト[[#This Row],[ビン番号]],ビンのルックアップ[],3,FALSE),\"\")","v":"2 列目、スロット 2"},"パッケージ (5 個)",20,30,14,{"$f":"在庫リスト[[#This Row],[数量]]*在庫リスト[[#This Row],[コスト]]","v":280},{"$f":"IFERROR(IF(在庫リスト[[#This Row],[数量]]<=在庫リスト[[#This Row],[再発注の数量]],1,0),0)","v":1}]
[null,"TS3456","品目 10","T349",{"$f":"IFERROR(VLOOKUP(在庫リスト[[#This Row],[ビン番号]],ビンのルックアップ[],3,FALSE),\"\")","v":"1 列目、スロット 2"},1,15,8,60,{"$f":"在庫リスト[[#This Row],[数量]]*在庫リスト[[#This Row],[コスト]]","v":900},{"$f":"IFERROR(IF(在庫リスト[[#This Row],[数量]]<=在庫リスト[[#This Row],[再発注の数量]],1,0),0)","v":0}]
[null,"WDG123","品目 11","T349",{"$f":"IFERROR(VLOOKUP(在庫リスト[[#This Row],[ビン番号]],ビンのルックアップ[],3,FALSE),\"\")","v":"1 列目、スロット 2"},1,25,15,8,{"$f":"在庫リスト[[#This Row],[数量]]*在庫リスト[[#This Row],[コスト]]","v":200},{"$f":"IFERROR(IF(在庫リスト[[#This Row],[数量]]<=在庫リスト[[#This Row],[再発注の数量]],1,0),0)","v":0}]

{"sheet":"在庫ピッキング リスト","index":1,"n_rows":9,"n_cols":9,"rows_kept":9,"cut":false,"hidden":false,"merged":[]}
[null,"在庫ピッキング リスト"]
[null,null,"在庫リスト"]
[]
[null,"注文番号","SKU","ピッキングの数量","在庫数","品目の説明","単位","ビン番号","場所"]
[null,"TP001-1","SP7875",3,{"$f":"IFERROR(VLOOKUP(在庫ピッキング_リスト[SKU],倉庫の在庫リスト!$B$5:$K$15,6,FALSE),\"\")","v":20},{"$f":"IFERROR(VLOOKUP(在庫ピッキング_リスト[SKU],倉庫の在庫リスト!$B$5:$K$15,2,FALSE),\"\")","v":"品目 1"},{"$f":"IFERROR(VLOOKUP(在庫ピッキング_リスト[SKU],倉庫の在庫リスト!$B$5:$K$15,5,FALSE),\"\")","v":1},{"$f":"IFERROR(VLOOKUP(在庫ピッキング_リスト[SKU],倉庫の在庫リスト!$B$5:$K$15,3,FALSE),\"\")","v":"T345"},{"$f":"IFERROR(VLOOKUP(在庫ピッキング_リスト[SKU],倉庫の在庫リスト!$B$5:$K$15,4,FALSE),\"\")","v":"2 列目、スロット 1"}]
[null,"TP001-1","YE98767",1,{"$f":"IFERROR(VLOOKUP(在庫ピッキング_リスト[SKU],倉庫の在庫リスト!$B$5:$K$15,6,FALSE),\"\")","v":40},{"$f":"IFERROR(VLOOKUP(在庫ピッキング_リスト[SKU],倉庫の在庫リスト!$B$5:$K$15,2,FALSE),\"\")","v":"品目 4"},{"$f":"IFERROR(VLOOKUP(在庫ピッキング_リスト[SKU],倉庫の在庫リスト!$B$5:$K$15,5,FALSE),\"\")","v":"ボックス (10 個)"},{"$f":"IFERROR(VLOOKUP(在庫ピッキング_リスト[SKU],倉庫の在庫リスト!$B$5:$K$15,3,FALSE),\"\")","v":"T9876"},{"$f":"IFERROR(VLOOKUP(在庫ピッキング_リスト[SKU],倉庫の在庫リスト!$B$5:$K$15,4,FALSE),\"\")","v":"3 列目、スロット 2"}]
[null,"TP001-1","BM87684",2,{"$f":"IFERROR(VLOOKUP(在庫ピッキング_リスト[SKU],倉庫の在庫リスト!$B$5:$K$15,6,FALSE),\"\")","v":10},{"$f":"IFERROR(VLOOKUP(在庫ピッキング_リスト[SKU],倉庫の在庫リスト!$B$5:$K$15,2,FALSE),\"\")","v":"品目 7"},{"$f":"IFERROR(VLOOKUP(在庫ピッキング_リスト[SKU],倉庫の在庫リスト!$B$5:$K$15,5,FALSE),\"\")","v":1},{"$f":"IFERROR(VLOOKUP(在庫ピッキング_リスト[SKU],倉庫の在庫リスト!$B$5:$K$15,3,FALSE),\"\")","v":"T349"},{"$f":"IFERROR(VLOOKUP(在庫ピッキング_リスト[SKU],倉庫の在庫リスト!$B$5:$K$15,4,FALSE),\"\")","v":"1 列目、スロット 2"}]
[null,"TP001-1","TS3456",6,{"$f":"IFERROR(VLOOKUP(在庫ピッキング_リスト[SKU],倉庫の在庫リスト!$B$5:$K$15,6,FALSE),\"\")","v":15},{"$f":"IFERROR(VLOOKUP(在庫ピッキング_リスト[SKU],倉庫の在庫リスト!$B$5:$K$15,2,FALSE),\"\")","v":"品目 10"},{"$f":"IFERROR(VLOOKUP(在庫ピッキング_リスト[SKU],倉庫の在庫リスト!$B$5:$K$15,5,FALSE),\"\")","v":1},{"$f":"IFERROR(VLOOKUP(在庫ピッキング_リスト[SKU],倉庫の在庫リスト!$B$5:$K$15,3,FALSE),\"\")","v":"T349"},{"$f":"IFERROR(VLOOKUP(在庫ピッキング_リスト[SKU],倉庫の在庫リスト!$B$5:$K$15,4,FALSE),\"\")","v":"1 列目、スロット 2"}]
[null,"TP001-1","MK676554",3,{"$f":"IFERROR(VLOOKUP(在庫ピッキング_リスト[SKU],倉庫の在庫リスト!$B$5:$K$15,6,FALSE),\"\")","v":10},{"$f":"IFERROR(VLOOKUP(在庫ピッキング_リスト[SKU],倉庫の在庫リスト!$B$5:$K$15,2,FALSE),\"\")","v":"品目 3"},{"$f":"IFERROR(VLOOKUP(在庫ピッキング_リスト[SKU],倉庫の在庫リスト!$B$5:$K$15,5,FALSE),\"\")","v":1},{"$f":"IFERROR(VLOOKUP(在庫ピッキング_リスト[SKU],倉庫の在庫リスト!$B$5:$K$15,3,FALSE),\"\")","v":"T5789"},{"$f":"IFERROR(VLOOKUP(在庫ピッキング_リスト[SKU],倉庫の在庫リスト!$B$5:$K$15,4,FALSE),\"\")","v":"1 列目、スロット 1"}]

{"sheet":"ビンのルックアップ","index":2,"n_rows":11,"n_cols":7,"rows_kept":11,"cut":false,"hidden":false,"merged":[]}
[null,"ビンのルックアップ"]
[null,"在庫リスト"]
[]
[null,"ビン番号","説明","場所","幅","高さ","長さ"]
[null,"T345","ビン (大)","2 列目、スロット 1",50,10,10]
[null,"T5789","ビン (小)","1 列目、スロット 1",25,5,5]
[null,"T9876","ビン (大)","3 列目、スロット 2",50,10,10]
[null,"T098","ビン (中)","3 列目、スロット 1",30,7,10]
[null,"T349","ビン (小)","1 列目、スロット 2",25,5,5]
[null,"T5789","ビン (大)","4 列目、スロット 5",50,10,10]
[null,"T9875","ビン (大)","2 列目、スロット 2",50,10,10]